fUSD/lending_fUSD_20250110
["ID","MTS","AMOUNT","RATE_DAILY","PERIOD"]
[348414401,1736523038585,-841.09212969,8.737e-05,2]
[348414402,1736523038598,-4213.28787031,8.737e-05,2]
[348414403,1736523038607,-3553.5,8.737e-05,2]
[348414404,1736523038616,-500.0,8.737e-05,2]
[348414405,1736523038625,-123.63041908,8.737e-05,2]
[348414406,1736523038647,-34.14207376,8.737e-05,2]
[348414407,1736523038656,-500.0,8.737e-05,2]
[348414408,1736523038666,-500.0,8.737e-05,2]
[348414409,1736523038675,-1028.38,8.737e-05,2]
[348414410,1736523038685,-500.0,8.737e-05,2]
[348414411,1736523038695,-1442.69,8.737e-05,2]
[348414413,1736523038704,-2140.87,8.737e-05,2]
[348414415,1736523038713,-502.61109831,8.737e-05,2]
[348414417,1736523038723,-500.0,8.737e-05,2]
[348414419,1736523038733,-1091.06,8.737e-05,2]
[348414420,1736523038742,-500.0,8.737e-05,2]
[348414422,1736523038751,-310.98690242,8.737e-05,2]
[348414423,1736523038761,-1510.87,8.737e-05,2]
[348414424,1736523038770,-500.0,8.737e-05,2]
[348414425,1736523038779,-500.0,8.737e-05,2]
[348414426,1736523038790,-500.0,8.737e-05,2]
[348414427,1736523038800,-500.0,8.737e-05,2]
[348414428,1736523038809,-854.48,8.738e-05,2]
[348414429,1736523038821,-500.0,8.738e-05,2]
[348414430,1736523038831,-500.0,8.738e-05,2]
[348414431,1736523038842,-500.0,8.738e-05,2]
[348414432,1736523038852,-805.07,8.738e-05,2]
[348414433,1736523038862,-1038.56,8.738e-05,2]
[348414434,1736523038871,-500.0,8.738e-05,2]
[348414435,1736523038881,-500.0,8.738e-05,2]
[348414436,1736523038891,-918.65,8.738e-05,2]
[348414438,1736523038900,-500.0,8.738e-05,2]
[348414439,1736523038916,-547.38,8.738e-05,2]
[348414441,1736523038925,-500.0,8.738e-05,2]
[348414442,1736523038934,-893.82,8.738e-05,2]
[348414443,1736523038944,-500.0,8.738e-05,2]
[348414444,1736523038953,-500.0,8.738e-05,2]
[348414445,1736523038963,-501.7174243,8.738e-05,2]
[348414446,1736523038973,-500.0,8.738e-05,2]
[348414447,1736523038983,-805.35,8.738e-05,2]
[348414448,1736523038992,-500.0,8.738e-05,2]
[348414449,1736523039002,-521.07,8.738e-05,2]
[348414450,1736523039012,-500.0,8.738e-05,2]
[348414451,1736523039021,-500.0,8.738e-05,2]
[348414452,1736523039031,-1004.75,8.738e-05,2]
[348414453,1736523039041,-500.0,8.738e-05,2]
[348414454,1736523039051,-987.98,8.738e-05,2]
[348414455,1736523039061,-500.0,8.738e-05,2]
[348414456,1736523039073,-534.61,8.738e-05,2]
[348414457,1736523039083,-500.0,8.738e-05,2]
[348414458,1736523039093,-500.0,8.738e-05,2]
[348414459,1736523039103,-500.0,8.738e-05,2]
[348414460,1736523039113,-500.0,8.738e-05,2]
[348414461,1736523039122,-500.0,8.738e-05,2]
[348414462,1736523039132,-500.0,8.738e-05,2]
[348414463,1736523039142,-500.0,8.738e-05,2]
[348414464,1736523039151,-500.0,8.738e-05,2]
[348414465,1736523039161,-500.0,8.738e-05,2]
[348414466,1736523039171,-500.0,8.738e-05,2]
[348414467,1736523039180,-500.0,8.738e-05,2]
[348414468,1736523039191,-513.81,8.738e-05,2]
[348414469,1736523039200,-500.0,8.738e-05,2]
[348414470,1736523039210,-500.0,8.738e-05,2]
[348414471,1736523039219,-1218.43,8.738e-05,2]
[348414472,1736523039230,-500.0,8.738e-05,2]
[348414473,1736523039239,-709.63,8.738e-05,2]
[348414474,1736523039249,-1283.512745,8.738e-05,2]
[348414475,1736523039259,-904.41,8.738e-05,2]
[348414476,1736523039270,-159.778496,8.738e-05,2]
[348414477,1736523039280,-659.68,8.738e-05,2]
[348414478,1736523039290,-500.0,8.738e-05,2]
[348414479,1736523039299,-156.694614,8.738e-05,2]
[348414480,1736523039308,-1149.66,8.738e-05,2]
[348414481,1736523039320,-500.0,8.738e-05,2]
[348414482,1736523039329,-500.0,8.738e-05,2]
[348414483,1736523039338,-621.04,8.738e-05,2]
[348414484,1736523039348,-1271.813223,8.738e-05,2]
[348414485,1736523039357,-1263.56,8.738e-05,2]
[348414486,1736523039630,-500.0,8.738e-05,2]
[348414487,1736523039642,-807.02,8.738e-05,2]
[348414488,1736523039653,-500.0,8.738e-05,2]
[348414489,1736523039663,-1015.71,8.738e-05,2]
[348414490,1736523039673,-500.0,8.738e-05,2]
[348414491,1736523039683,-526.56,8.738e-05,2]
[348414492,1736523039693,-500.0,8.738e-05,2]
[348414493,1736523039702,-500.0,8.738e-05,2]
[348414494,1736523039712,-500.0,8.738e-05,2]
[348414495,1736523039722,-1323.52,8.738e-05,2]
[348414496,1736523039732,-500.0,8.738e-05,2]
[348414497,1736523039742,-622.16,8.738e-05,2]
[348414498,1736523039751,-500.0,8.738e-05,2]
[348414499,1736523039761,-1136.5,8.738e-05,2]
[348414500,1736523039771,-500.0,8.738e-05,2]
[348414501,1736523039780,-500.0,8.738e-05,2]
[348414502,1736523039790,-1062.75,8.738e-05,2]
[348414503,1736523039800,-548.7,8.738e-05,2]
[348414504,1736523039809,-500.0,8.738e-05,2]
[348414505,1736523039822,-549.06,8.738e-05,2]
[348414506,1736523039832,-2436.91,8.738e-05,2]
[348414507,1736523039842,-1235.69,8.738e-05,2]
[348414508,1736523039852,-500.0,8.738e-05,2]
[348414509,1736523039862,-500.0,8.738e-05,2]
[348414510,1736523039871,-500.0,8.738e-05,2]
[348414511,1736523039882,-868.43,8.738e-05,2]
[348414512,1736523039892,-500.0,8.738e-05,2]
[348414513,1736523039902,-500.0,8.738e-05,2]
[348414514,1736523039911,-500.0,8.738e-05,2]
[348414515,1736523039920,-2216.32,8.738e-05,2]
[348414516,1736523039929,-1172.85,8.738e-05,2]
[348414517,1736523039943,-500.0,8.738e-05,2]
[348414518,1736523039955,-500.0,8.738e-05,2]
[348414519,1736523039965,-500.0,8.738e-05,2]
[348414520,1736523039974,-1262.26,8.738e-05,2]
[348414521,1736523039983,-500.0,8.738e-05,2]
[348414522,1736523039993,-500.0,8.738e-05,2]
[348414523,1736523040002,-500.0,8.738e-05,2]
[348414524,1736523040012,-757.13,8.738e-05,2]
[348414525,1736523040021,-1297.26,8.738e-05,2]
[348414526,1736523040031,-500.0,8.738e-05,2]
[348414527,1736523040040,-500.0,8.738e-05,2]
[348414528,1736523040049,-2335.25,8.738e-05,2]
[348414529,1736523040058,-1073.1,8.738e-05,2]
[348414530,1736523040069,-1195.09,8.738e-05,2]
[348414531,1736523040079,-4949.58,8.738e-05,2]
[348414532,1736523040087,-500.0,8.738e-05,2]
[348414533,1736523040097,-982.76,8.738e-05,2]
[348414534,1736523040106,-880.93,8.738e-05,2]
[348414535,1736523040115,-1239.31,8.738e-05,2]
[348414536,1736523040125,-4906.52,8.738e-05,2]
[348414537,1736523040134,-500.0,8.738e-05,2]
[348414538,1736523040143,-1007.6,8.738e-05,2]
[348414539,1736523040152,-500.0,8.738e-05,2]
[348414540,1736523040162,-500.0,8.738e-05,2]
[348414541,1736523040171,-500.0,8.738e-05,2]
[348414543,1736523040180,-1023.38,8.738e-05,2]
[348414544,1736523040189,-1248.84,8.738e-05,2]
[348414545,1736523040198,-516.37161911,8.738e-05,2]
[348414546,1736523040207,-500.0,8.738e-05,2]
[348414547,1736523040216,-2045.12,8.738e-05,2]
[348414548,1736523040226,-500.0,8.738e-05,2]
[348414549,1736523040235,-716.01,8.738e-05,2]
[348414550,1736523040244,-500.0,8.738e-05,2]
[348414551,1736523040253,-1174.91,8.738e-05,2]
[348414552,1736523040261,-5917.35,8.738e-05,2]
[348414553,1736523040271,-1009.9,8.738e-05,2]
[348414554,1736523040279,-165.243473,8.738e-05,2]
[348414555,1736523040288,-1469.1,8.738e-05,2]
[348414557,1736523040297,-682.86,8.738e-05,2]
[348414559,1736523040306,-501.70798032,8.738e-05,2]
[348414560,1736523040317,-500.0,8.738e-05,2]
[348414562,1736523040327,-500.0,8.738e-05,2]
[348414563,1736523040336,-1143.26,8.738e-05,2]
[348414564,1736523040346,-377.62265834,8.738e-05,2]
[348414565,1736523040355,-161.836821,8.738e-05,2]
[348414566,1736523040365,-500.0,8.738e-05,2]
[348414567,1736523040374,-500.0,8.738e-05,2]
[348414568,1736523040383,-1197.4,8.738e-05,2]
[348414569,1736523040392,-1190.06,8.738e-05,2]
[348414570,1736523040402,-500.0,8.738e-05,2]
[348414571,1736523040411,-500.82,8.738e-05,2]
[348414572,1736523040420,-4707.64,8.738e-05,2]
[348414573,1736523040429,-952.31,8.738e-05,2]
[348414574,1736523040438,-237.43690808,8.738e-05,2]
[348414575,1736523040448,-500.0,8.738e-05,2]
[348414576,1736523040458,-532.37718764,8.739e-05,2]
[348414577,1736523040467,-500.0,8.739e-05,2]
[348414578,1736523040476,-532.45280973,8.739e-05,2]
[348414579,1736523040486,-500.99726052,8.739e-05,2]
[348414580,1736523040496,-503.4312373,8.739e-05,2]
[348414581,1736523040505,-502.83592766,8.739e-05,2]
[348414582,1736523040515,-503.28203279,8.739e-05,2]
[348414583,1736523040524,-504.47559014,8.739e-05,2]
[348414584,1736523040534,-503.3677463,8.739e-05,2]
[348414585,1736523040544,-500.0,8.739e-05,2]
[348414586,1736523040554,-500.0,8.739e-05,2]
[348414587,1736523040567,-500.0,8.739e-05,2]
[348414588,1736523040577,-500.0,8.739e-05,2]
[348414589,1736523040587,-500.0,8.739e-05,2]
[348414590,1736523040598,-500.0,8.739e-05,2]
[348414591,1736523040608,-500.30028767,8.739e-05,2]
[348414592,1736523040617,-500.0,8.739e-05,2]
[348414593,1736523040627,-500.0,8.739e-05,2]
[348414594,1736523040639,-428.33563749,8.739e-05,2]
[348414595,1736523040650,-500.0,8.739e-05,2]
[348414596,1736523040660,-500.0,8.739e-05,2]
[348414597,1736523040670,-500.25801041,8.739e-05,2]
[348414598,1736523040680,-500.18372312,8.739e-05,2]
[348414599,1736523040690,-500.0,8.739e-05,2]
[348414600,1736523040700,-500.44282157,8.739e-05,2]
[348414601,1736523040709,-500.0,8.739e-05,2]
[348414602,1736523040718,-500.15463772,8.739e-05,2]
[348414603,1736523040728,-500.0,8.739e-05,2]
[348414604,1736523040738,-500.0,8.739e-05,2]
[348414605,1736523040747,-500.0,8.739e-05,2]
[348414606,1736523040757,-500.0,8.739e-05,2]
[348414607,1736523040766,-500.0,8.739e-05,2]
[348414608,1736523040776,-500.0,8.739e-05,2]
[348414609,1736523040786,-500.0,8.739e-05,2]
[348414611,1736523040795,-500.0,8.739e-05,2]
[348414613,1736523040806,-500.0,8.739e-05,2]
[348414614,1736523040815,-500.0,8.739e-05,2]
[348414616,1736523040832,-500.0,8.739e-05,2]
[348414618,1736523040842,-500.0,8.739e-05,2]
[348414620,1736523040853,-500.66276812,8.739e-05,2]
[348414621,1736523040862,-300.0,8.739e-05,2]
[348414622,1736523040872,-501.0747221,8.739e-05,2]
[348414623,1736523040882,-500.0,8.739e-05,2]
[348414624,1736523040892,-501.37146177,8.739e-05,2]
[348414625,1736523040902,-500.0,8.739e-05,2]
[348414626,1736523040912,-500.0,8.739e-05,2]
[348414627,1736523040922,-500.0,8.739e-05,2]
[348414628,1736523040931,-449.10248397,8.739e-05,2]
[348414629,1736523040942,-500.0,8.739e-05,2]
[348414630,1736523040951,-500.0,8.739e-05,2]
[348414631,1736523040963,-500.0,8.739e-05,2]
[348414632,1736523040974,-500.80476426,8.739e-05,2]
[348414633,1736523040984,-500.0,8.739e-05,2]
[348414635,1736523040994,-500.0,8.739e-05,2]
[348414637,1736523041003,-501.08170471,8.739e-05,2]
[348414638,1736523041013,-500.0,8.739e-05,2]
[348414640,1736523041023,-500.83100181,8.739e-05,2]
[348414642,1736523041032,-501.059187,8.739e-05,2]
[348414644,1736523041042,-771.69,8.739e-05,2]
[348414646,1736523041051,-500.0,8.739e-05,2]
[348414648,1736523041060,-500.0,8.739e-05,2]
[348414650,1736523041074,-1000.0,8.739e-05,2]
[348414652,1736523041084,-500.0,8.739e-05,2]
[348414654,1736523041093,-777.11,8.739e-05,2]
[348414656,1736523041103,-531.26254523,8.739e-05,2]
[348414658,1736523041113,-500.87031195,8.739e-05,2]
[348414660,1736523041122,-528.08576294,8.739e-05,2]
[348414662,1736523041131,-500.65672481,8.739e-05,2]
[348414664,1736523041140,-504.42542133,8.739e-05,2]
[348414666,1736523041149,-500.0,8.739e-05,2]
[348414668,1736523041159,-501.75226655,8.739e-05,2]
[348414670,1736523041168,-500.0,8.739e-05,2]
[348414672,1736523041177,-500.0,8.739e-05,2]
[348414674,1736523041187,-500.0,8.739e-05,2]
[348414676,1736523041196,-500.0,8.739e-05,2]
[348414678,1736523041205,-500.0,8.739e-05,2]
[348414680,1736523041216,-500.0,8.739e-05,2]
[348414682,1736523041224,-500.0,8.739e-05,2]
[348414684,1736523041234,-506.56875896,8.739e-05,2]
[348414686,1736523041243,-500.0,8.739e-05,2]
[348414688,1736523041252,-500.0,8.739e-05,2]
[348414690,1736523041261,-500.0,8.739e-05,2]
[348414692,1736523041270,-500.0,8.739e-05,2]
[348414694,1736523041279,-500.0,8.739e-05,2]
[348414696,1736523041289,-500.0,8.739e-05,2]
[348414698,1736523041298,-500.0,8.739e-05,2]
[348414700,1736523041308,-500.0,8.739e-05,2]
[348414702,1736523041322,-500.0,8.739e-05,2]
[348414704,1736523041332,-500.84687183,8.739e-05,2]
[348414706,1736523041342,-500.0,8.739e-05,2]
[348414708,1736523041352,-500.0,8.739e-05,2]
[348414710,1736523041361,-500.0,8.739e-05,2]
[348414712,1736523041370,-500.0,8.739e-05,2]
[348414714,1736523041379,-500.0,8.739e-05,2]
[348414716,1736523041389,-500.0,8.739e-05,2]
[348414718,1736523041398,-500.0,8.739e-05,2]
[348414720,1736523041407,-500.0,8.739e-05,2]
[348414722,1736523041417,-500.0,8.739e-05,2]
[348414724,1736523041426,-500.0,8.739e-05,2]
[348414726,1736523041435,-501.59710081,8.739e-05,2]
[348414728,1736523041444,-500.0,8.739e-05,2]
[348414730,1736523041454,-500.0,8.739e-05,2]
[348414732,1736523041463,-500.0,8.739e-05,2]
[348414734,1736523041472,-500.0,8.739e-05,2]
[348414736,1736523041482,-500.0,8.739e-05,2]
[348414738,1736523041492,-501.51766145,8.739e-05,2]
[348414740,1736523041502,-500.0,8.739e-05,2]
[348414742,1736523041512,-500.0,8.739e-05,2]
[348414744,1736523041521,-500.0,8.739e-05,2]
[348414746,1736523041530,-500.0,8.739e-05,2]
[348414748,1736523041540,-500.0,8.739e-05,2]
[348414750,1736523041550,-501.97527061,8.739e-05,2]
[348414752,1736523041560,-502.89443106,8.739e-05,2]
[348414754,1736523041575,-500.0,8.739e-05,2]
[348414756,1736523041584,-500.0,8.739e-05,2]
[348414758,1736523041594,-501.95172263,8.739e-05,2]
[348414760,1736523041603,-500.0,8.739e-05,2]
[348414762,1736523041613,-501.81283138,8.739e-05,2]
[348414764,1736523041623,-500.0,8.739e-05,2]
[348414766,1736523041633,-500.0,8.739e-05,2]
[348414768,1736523041644,-500.0,8.739e-05,2]
[348414770,1736523041654,-500.0,8.739e-05,2]
[348414772,1736523041664,-451.44012005,8.739e-05,2]
[348414774,1736523041675,-500.0,8.739e-05,2]
[348414776,1736523041684,-500.0,8.739e-05,2]
[348414778,1736523041694,-500.50053246,8.739e-05,2]
[348414780,1736523041703,-289.49375737,8.739e-05,2]
[348414782,1736523041712,-500.0,8.739e-05,2]
[348414784,1736523041722,-615.79989313,8.739e-05,2]
[348414786,1736523041731,-500.0,8.739e-05,2]
[348414788,1736523041741,-501.38741748,8.739e-05,2]
[348414790,1736523041751,-502.19442005,8.739e-05,2]
[348414792,1736523041760,-500.0,8.739e-05,2]
[348414794,1736523041770,-500.0,8.739e-05,2]
[348414796,1736523041779,-500.0,8.739e-05,2]
[348414798,1736523041788,-500.0,8.739e-05,2]
[348414800,1736523041797,-500.0,8.739e-05,2]
[348414802,1736523041807,-500.0,8.739e-05,2]
[348414804,1736523041820,-641.69,8.739e-05,2]
[348414806,1736523041830,-500.0,8.739e-05,2]
[348414808,1736523041840,-500.0,8.739e-05,2]
[348414810,1736523041850,-500.0,8.739e-05,2]
[348414812,1736523041859,-500.0,8.739e-05,2]
[348414813,1736523041868,-500.0,8.739e-05,2]
[348414815,1736523041877,-641.91987874,8.739e-05,2]
[348414817,1736523041886,-500.0,8.739e-05,2]
[348414819,1736523041895,-500.0,8.739e-05,2]
[348414821,1736523041905,-500.0,8.739e-05,2]
[348414823,1736523041914,-500.0,8.739e-05,2]
[348414825,1736523041923,-500.0,8.739e-05,2]
[348414827,1736523041933,-976.14,8.739e-05,2]
[348414829,1736523041942,-500.0,8.739e-05,2]
[348414831,1736523041952,-500.86343127,8.739e-05,2]
[348414833,1736523041961,-500.0,8.739e-05,2]
[348414834,1736523041970,-500.0,8.739e-05,2]
[348414835,1736523041979,-521.4,8.739e-05,2]
[348414836,1736523041988,-500.0,8.739e-05,2]
[348414837,1736523041997,-500.0,8.739e-05,2]
[348414838,1736523042006,-500.0,8.739e-05,2]
[348414839,1736523042015,-500.0,8.739e-05,2]
[348414840,1736523042024,-687.89,8.739e-05,2]
[348414842,1736523042034,-150.0,8.739e-05,2]
[348414844,1736523042043,-500.0,8.739e-05,2]
[348414846,1736523042052,-5000.0,8.739e-05,2]
[348414848,1736523042062,-500.0,8.739e-05,2]
[348414850,1736523042073,-500.0,8.739e-05,2]
[348414852,1736523042083,-500.0,8.739e-05,2]
[348414854,1736523042092,-500.0,8.739e-05,2]
[348414856,1736523042102,-1150.28,8.739e-05,2]
[348414858,1736523042112,-500.0,8.739e-05,2]
[348414860,1736523042121,-500.0,8.739e-05,2]
[348414862,1736523042131,-881.26,8.739e-05,2]
[348414864,1736523042141,-500.0,8.739e-05,2]
[348414866,1736523042151,-506.01377291,8.739e-05,2]
[348414868,1736523042160,-500.0,8.739e-05,2]
[348414870,1736523042169,-678.72,8.739e-05,2]
[348414872,1736523042179,-672.49,8.739e-05,2]
[348414874,1736523042188,-502.19890185,8.739e-05,2]
[348414876,1736523042197,-500.0,8.739e-05,2]
[348414878,1736523042206,-508.17425266,8.739e-05,2]
[348414880,1736523042216,-668.92,8.739e-05,2]
[348414882,1736523042225,-500.0,8.739e-05,2]
[348414884,1736523042234,-500.62773334,8.739e-05,2]
[348414886,1736523042244,-500.0,8.739e-05,2]
[348414888,1736523042253,-500.0,8.739e-05,2]
[348414890,1736523042262,-500.0,8.739e-05,2]
[348414892,1736523042271,-587.33,8.739e-05,2]
[348414894,1736523042280,-1259.79,8.739e-05,2]
[348414896,1736523042290,-500.0,8.739e-05,2]
[348414898,1736523042299,-767.43,8.739e-05,2]
[348414900,1736523042308,-500.0,8.739e-05,2]
[348414902,1736523042320,-500.0,8.739e-05,2]
[348414904,1736523042330,-500.0,8.739e-05,2]
[348414906,1736523042339,-500.0,8.739e-05,2]
[348414908,1736523042349,-500.0,8.739e-05,2]
[348414910,1736523042358,-500.0,8.739e-05,2]
[348414912,1736523042367,-500.0,8.739e-05,2]
[348414914,1736523042376,-500.0,8.739e-05,2]
[348414915,1736523042386,-715.52,8.739e-05,2]
[348414916,1736523042395,-150.99,8.739e-05,2]
[348414917,1736523042404,-501.41735268,8.739e-05,2]
[348414918,1736523042416,-500.0,8.739e-05,2]
[348414919,1736523042425,-892.55,8.739e-05,2]
[348414920,1736523042435,-500.0,8.739e-05,2]
[348414921,1736523042444,-1562.21,8.739e-05,2]
[348414922,1736523042454,-722.56,8.739e-05,2]
[348414923,1736523042464,-1257.37,8.739e-05,2]
[348414924,1736523042473,-500.0,8.739e-05,2]
[348414925,1736523042483,-500.0,8.739e-05,2]
[348414926,1736523042492,-500.0,8.739e-05,2]
[348414927,1736523042501,-500.0,8.739e-05,2]
[348414928,1736523042511,-500.0,8.739e-05,2]
[348414929,1736523042520,-1360.33,8.739e-05,2]
[348414930,1736523042530,-500.0,8.739e-05,2]
[348414931,1736523042539,-500.0,8.739e-05,2]
[348414932,1736523042549,-1041.92,8.739e-05,2]
[348414933,1736523042561,-905.09,8.739e-05,2]
[348414934,1736523042574,-1298.76,8.739e-05,2]
[348414935,1736523042583,-972.94,8.739e-05,2]
[348414936,1736523042593,-500.0,8.739e-05,2]
[348414937,1736523042603,-857.81,8.739e-05,2]
[348414938,1736523042613,-531.04696606,8.739e-05,2]
[348414939,1736523042622,-500.0,8.739e-05,2]
[348414940,1736523042633,-500.0,8.739e-05,2]
[348414941,1736523042643,-1515.42,8.739e-05,2]
[348414943,1736523042653,-1042.5,8.739e-05,2]
[348414945,1736523042662,-1388.16,8.739e-05,2]
[348414947,1736523042672,-3242.75,8.739e-05,2]
[348414948,1736523042681,-500.0,8.739e-05,2]
[348414951,1736523042691,-1589.08,8.739e-05,2]
[348414953,1736523042700,-500.0,8.739e-05,2]
[348414955,1736523042710,-959.83,8.739e-05,2]
[348414957,1736523042719,-500.0,8.739e-05,2]
[348414959,1736523042729,-500.0,8.739e-05,2]
[348414960,1736523042738,-1142.51,8.739e-05,2]
[348414963,1736523042748,-500.0,8.739e-05,2]
[348414965,1736523042758,-500.0,8.739e-05,2]
[348414966,1736523042768,-639.72,8.739e-05,2]
[348414969,1736523042778,-2212.31,8.739e-05,2]
[348414971,1736523042787,-500.0,8.739e-05,2]
[348414972,1736523042797,-7598.69,8.739e-05,2]
[348414974,1736523042808,-979.82,8.74e-05,2]
[348414977,1736523042821,-437.12,8.74e-05,2]
[348414978,1736523042830,-150.0,8.74e-05,2]
[348414981,1736523042841,-150.0,8.74e-05,2]
[348414983,1736523042851,-150.0,8.74e-05,2]
[348414985,1736523042860,-150.0,8.74e-05,2]
[348414987,1736523042870,-150.0,8.74e-05,2]
[348414989,1736523042879,-150.0,8.74e-05,2]
[348414990,1736523042888,-437.12,8.74e-05,2]
[348414993,1736523042898,-979.82,8.74e-05,2]
[348414994,1736523042907,-437.12,8.74e-05,2]
[348414997,1736523042917,-150.0,8.74e-05,2]
[348414998,1736523042926,-979.82,8.74e-05,2]
[348415000,1736523042935,-150.0,8.74e-05,2]
[348415003,1736523042945,-150.0,8.74e-05,2]
[348415005,1736523042955,-979.82,8.74e-05,2]
[348415006,1736523042964,-150.0,8.74e-05,2]
[348415008,1736523042974,-437.12,8.74e-05,2]
[348415010,1736523042984,-150.0,8.74e-05,2]
[348415012,1736523042993,-979.82,8.74e-05,2]
[348415015,1736523043003,-150.0,8.74e-05,2]
[348415017,1736523043012,-437.12,8.74e-05,2]
[348415019,1736523043022,-821.32,8.74e-05,2]
[348415021,1736523043032,-437.12,8.74e-05,2]
[348415022,1736523043041,-1203.7,8.75e-05,2]
[348415025,1736523043051,-4584.33,8.75e-05,2]
[348415027,1736523043060,-1164.0,8.75e-05,2]
[348415029,1736523043073,-500.0,8.75e-05,2]
[348415031,1736523043083,-1284.86,8.75e-05,2]
[348415032,1736523043092,-994.04,8.75e-05,2]
[348415034,1736523043101,-500.0,8.776e-05,2]
[348415036,1736523043111,-501.24326625,8.777e-05,2]
[348415039,1736523043120,-500.0,8.777e-05,2]
[348415042,1736523043129,-500.0,8.777e-05,2]
[348415043,1736523043139,-500.0,8.777e-05,2]
[348415046,1736523043148,-500.0,8.777e-05,2]
[348415047,1736523043157,-500.0,8.777e-05,2]
[348415050,1736523043167,-500.0,8.777e-05,2]
[348415052,1736523043176,-500.0,8.777e-05,2]
[348415055,1736523043185,-500.0,8.777e-05,2]
[348415056,1736523043195,-500.0,8.777e-05,2]
[348415057,1736523043205,-500.0,8.777e-05,2]
[348415058,1736523043214,-500.0,8.777e-05,2]
[348415059,1736523043223,-2807.72,8.777e-05,2]
[348415060,1736523043233,-3785.84,8.777e-05,2]
[348415061,1736523043242,-2330.28,8.777e-05,2]
[348415062,1736523043251,-2423.96,8.777e-05,2]
[348415064,1736523043261,-500.0,8.777e-05,2]
[348415066,1736523043270,-1705.66,8.777e-05,2]
[348415068,1736523043279,-3880.21,8.777e-05,2]
[348415070,1736523043288,-1879.13,8.777e-05,2]
[348415072,1736523043298,-1341.89,8.777e-05,2]
[348415074,1736523043308,-1457.95,8.777e-05,2]
[348415076,1736523043320,-437.12,8.78e-05,2]
[348415078,1736523043330,-500.0,8.85e-05,2]
[348415080,1736523043339,-500.0,8.85e-05,2]
[348415082,1736523043349,-500.0,8.85e-05,2]
[348415084,1736523043358,-500.0,8.85e-05,2]
[348415086,1736523043367,-500.0,8.85e-05,2]
[348415088,1736523043376,-502.92973222,8.85e-05,2]
[348415090,1736523043385,-500.0,8.85e-05,2]
[348415092,1736523043395,-500.0,8.85e-05,2]
[348415094,1736523043404,-500.0,8.85e-05,2]
[348415096,1736523043413,-500.0,8.85e-05,2]
[348415098,1736523043422,-500.0,8.85e-05,2]
[348415100,1736523043431,-500.0,8.85e-05,2]
[348415102,1736523043440,-507.69615987,8.85e-05,2]
[348415104,1736523043449,-500.0,8.85e-05,2]
[348415106,1736523043458,-500.0,8.85e-05,2]
[348415108,1736523043467,-500.0,8.85e-05,2]
[348415110,1736523043477,-500.0,8.85e-05,2]
[348415112,1736523043486,-500.0,8.85e-05,2]
[348415114,1736523043495,-500.0,8.85e-05,2]
[348415116,1736523043504,-500.0,8.85e-05,2]
[348415118,1736523043514,-434.26354156,8.85e-05,2]
[348415120,1736523043524,-500.0,8.85e-05,2]
[348415122,1736523043534,-500.0,8.85e-05,2]
[348415124,1736523043543,-500.0,8.85e-05,2]
[348415126,1736523043553,-500.0,8.85e-05,2]
[348415128,1736523043564,-500.0,8.85e-05,2]
[348415130,1736523043579,-500.0,8.85e-05,2]
[348415132,1736523043588,-506.96300698,8.85e-05,2]
[348415134,1736523043598,-500.0,8.85e-05,2]
[348415136,1736523043608,-500.0,8.85e-05,2]
[348415138,1736523043617,-500.0,8.85e-05,2]
[348415140,1736523043628,-605.63,8.85e-05,2]
[348415142,1736523043638,-500.0,8.85e-05,2]
[348415143,1736523043648,-504.78697576,8.85e-05,2]
[348415144,1736523043658,-500.0,8.85e-05,2]
[348415145,1736523043668,-505.5340845,8.85e-05,2]
[348415146,1736523043677,-185.16656078,8.85e-05,2]
[348415148,1736523043687,-500.0,8.85e-05,2]
[348415149,1736523043886,-630.08,8.85e-05,2]
[348415150,1736523043895,-500.0,8.85e-05,2]
[348415151,1736523043905,-500.0,8.85e-05,2]